bitfinex/quotes_ETHUSD_20250623
["timestamp","ask_amount","ask_price","bid_price","bid_amount"]
[1750711308258,0.7871,2361.9,2361.1,0.8044]
[1750711308259,10.7871,2361.9,2361.5,4.23446772]
[1750711308429,10.7871,2361.9,2361.2,0.55]
[1750711308631,0.7871,2361.9,2361.2,4.2349633]
[1750711308837,0.7871,2361.9,2361.1,4.23528701]
[1750711309128,0.7871,2361.9,2361.3,4.23494649]
[1750711309357,0.7871,2361.9,2361.4,12.51225173]
[1750711309719,0.7871,2361.9,2361.4,8.27749465]
[1750711309915,12.01654686,2361.9,2361.0,4.23535743]
[1750711310147,0.7871,2361.9,2361.3,4.23484197]
[1750711310315,0.7871,2361.9,2361.4,7.852]
[1750711310647,10.2203921,2362.5,2361.4,8.6623]
[1750711310648,0.7871,2362.4,2361.4,8.6623]
[1750711311028,0.7871,2362.4,2361.7,0.55]
[1750711311233,0.7871,2362.4,2362.2,4.23322992]
[1750711311454,0.7871,2362.4,2362.2,0.42332299]
[1750711311651,0.7871,2362.4,2361.8,4.23394096]
[1750711311849,11.22944686,2362.2,2361.8,7.848]
[1750711312035,0.7686,2362.1,2361.5,7.848]
[1750711312251,10.7686,2362.1,2361.4,7.847]
[1750711312855,10.7686,2362.1,2361.4,12.08177263]
[1750711313097,0.7686,2362.1,2361.5,4.2344256]
[1750711313267,0.7686,2362.1,2361.5,12.0794256]
[1750711313583,0.7686,2362.1,2361.6,4.23441345]
[1750711314365,0.7686,2362.1,2361.6,4.23441734]
[1750711314574,0.7871,2362.4,2361.9,4.23372315]
[1750711314751,0.7871,2362.4,2362.0,12.07667851]
[1750711315274,0.7871,2362.4,2362.0,7.843]
[1750711315458,0.7871,2362.4,2361.9,0.84677244]
[1750711315660,0.7871,2362.4,2361.4,0.55]
[1750711315661,0.7871,2362.2,2361.7,7.841]
[1750711316060,0.7871,2362.2,2361.1,1.3138]
[1750711316262,0.7871,2361.9,2361.2,15.56637437]
[1750711316870,0.7871,2361.9,2361.2,15.56644327]
[1750711317050,0.7871,2361.9,2361.5,4.23450712]
[1750711317248,0.7871,2361.9,2361.2,11.33138]
[1750711317249,0.7871,2361.9,2361.6,7.837]
[1750711317452,0.7871,2361.9,2361.6,12.07128692]
[1750711317649,0.7871,2361.9,2361.8,4.23405876]
[1750711317974,0.7871,2362.4,2361.7,1.63058472]
[1750711318175,0.7871,2362.4,2361.8,2.36]
[1750711318376,0.7871,2362.4,2361.7,1.63058472]
[1750711318677,0.7871,2362.4,2361.9,7.835]
[1750711319064,0.7871,2362.4,2361.9,12.06886682]
[1750711319265,0.7871,2362.4,2362.0,4.23353046]
[1750711319575,0.7871,2362.4,2362.0,7.833]
[1750711320339,15.25928951,2362.4,2362.0,7.833]
[1750711320682,0.7871,2361.9,2361.2,1.13138]
[1750711320977,14.47218951,2361.7,2361.2,5.36644754]
[1750711321140,0.7871,2362.4,2361.8,4.23405876]
[1750711321346,0.7871,2362.4,2362.0,4.23358783]
[1750711321550,0.7871,2362.4,2362.1,4.23351636]
[1750711321746,0.7871,2362.4,2362.1,4.23342541]
[1750711321946,0.7871,2362.4,2362.1,0.84669493]
[1750711322182,0.7871,2362.4,2362.0,4.23362309]
[1750711322381,0.7871,2362.4,2361.9,4.2338795]
[1750711322546,0.7871,2362.4,2361.8,4.2339864]
[1750711322747,0.7871,2362.4,2361.5,2.359]
[1750711322748,14.47218951,2362.1,2361.5,2.359]
[1750711322942,0.7871,2362.0,2361.5,2.359]
[1750711323253,0.7871,2361.7,2361.1,4.23521204]
[1750711323458,0.7871,2361.7,2361.2,4.2350145]
[1750711323758,0.7871,2361.7,2361.1,4.23521391]
[1750711324085,0.7871,2361.7,2361.2,4.23510398]
[1750711324260,0.7871,2361.7,2361.1,4.23521391]
[1750711324580,0.7871,2361.7,2361.1,6.10068678]
[1750711324782,0.7871,2361.7,2361.3,4.23493744]
[1750711325362,0.7871,2361.7,2361.4,4.23467484]
[1750711325564,0.7871,2361.7,2361.1,13.9216667]
[1750711325768,0.7871,2361.7,2361.5,4.23443543]
[1750711326077,0.7871,2361.7,2361.5,0.42344354]
[1750711326273,0.7685,2362.1,2361.5,4.657963]
[1750711326677,0.7685,2362.1,2361.6,7.819]
[1750711327464,0.7685,2362.1,2361.7,4.23407779]
[1750711327696,0.7685,2362.1,2361.5,0.42344354]
[1750711327899,0.7685,2362.1,2361.6,4.23436091]
[1750711328103,0.7685,2362.1,2361.7,4.23415409]
[1750711328457,0.7685,2362.1,2361.8,4.23405611]
[1750711328796,0.7685,2362.1,2361.7,4.23412974]
[1750711329701,0.7685,2362.1,2361.2,4.23499794]
[1750711329994,11.22044902,2362.2,2361.3,12.04886766]
[1750711329995,10.786,2362.0,2361.3,12.04886766]
[1750711330487,10.7561,2361.7,2360.9,4.23554588]
[1750711330689,0.7561,2361.6,2361.0,0.35357162]
[1750711330900,0.7561,2361.6,2361.1,4.23514126]
[1750711331190,0.7561,2361.6,2361.1,6.25231344]
[1750711331590,0.7561,2361.6,2361.2,4.23511637]
[1750711331894,0.7561,2361.6,2361.2,4.23513467]
[1750711332188,0.7561,2361.6,2361.3,4.2348611]
[1750711332392,0.7561,2361.6,2361.1,2.01717218]
[1750711332575,0.7561,2361.6,2361.0,4.23548156]
[1750711332897,0.7561,2361.6,2361.0,4.23539417]
[1750711333387,0.7561,2361.6,2361.0,4.2353923]
[1750711333886,0.7561,2361.6,2361.0,12.04334348]
[1750711334068,0.7561,2361.6,2361.0,7.807]
[1750711334269,0.7561,2361.6,2361.0,12.0424522]
[1750711334496,0.7561,2361.6,2361.0,13.90614932]
[1750711334657,0.7561,2361.6,2361.0,13.90612316]
[1750711335576,0.7561,2361.6,2361.1,4.23529572]
[1750711335777,0.7561,2361.6,2361.0,13.90608934]
[1750711336670,0.7561,2361.6,2360.4,0.78808373]
[1750711336671,0.7871,2361.2,2360.4,0.78808373]
[1750711336901,0.7871,2361.2,2360.6,4.23612722]
[1750711337099,0.7871,2361.2,2360.7,4.23602079]
[1750711337296,0.7871,2361.2,2360.6,4.23608535]
[1750711337501,0.7871,2361.2,2360.7,4.23603039]
[1750711337819,0.7871,2361.2,2360.6,4.23611595]
[1750711338106,0.7871,2361.2,2360.6,8.64824196]
[1750711338308,0.7871,2361.2,2360.6,12.8843572]
[1750711339374,0.7871,2361.2,2360.6,8.64824196]
[1750711339724,0.7871,2361.2,2360.4,7.798]
[1750711340271,0.7871,2361.2,2360.3,4.23668066]
[1750711340477,0.7871,2361.2,2360.2,7.796]
[1750711340986,0.7871,2360.9,2360.1,14.3580157]
[1750711341312,0.7871,2360.9,2360.2,1.85953038]
[1750711341685,0.7871,2360.9,2360.2,6.09643924]
[1750711342022,0.7871,2360.9,2360.2,6.09639255]
[1750711342215,0.7871,2360.9,2360.3,4.23659886]
[1750711342381,0.7871,2360.9,2360.3,4.23667894]
[1750711342575,0.7871,2360.9,2360.4,1.0333059]
[1750711342771,0.7871,2360.9,2360.2,6.09644145]
[1750711343082,0.7871,2360.9,2360.2,9.65253038]
[1750711343511,0.7871,2360.9,2360.3,4.23665095]
[1750711343677,11.3356,2360.8,2359.3,0.7852]
[1750711343880,0.7856,2359.9,2359.0,5.02421074]
[1750711344125,10.0,2359.9,2359.0,0.73502107]
[1750711344279,10.0,2359.9,2359.2,4.23871089]
[1750711344280,0.7871,2359.8,2359.2,4.23871089]
[1750711344678,0.7871,2359.8,2359.0,0.73502107]
[1750711344679,0.7871,2359.8,2359.1,4.23880998]
[1750711344884,0.7871,2359.8,2359.2,4.238712]
[1750711345312,0.7871,2359.8,2359.1,4.23882678]
[1750711345512,0.7871,2359.8,2359.2,0.49738479]
[1750711346005,0.7871,2359.8,2359.0,12.0280049]
[1750711346318,0.7638,2359.6,2358.8,7.788]
[1750711346480,0.7638,2359.6,2358.7,4.2396221]
[1750711346684,0.7638,2359.6,2358.7,14.2396221]
[1750711346899,0.7638,2359.6,2358.7,4.2396221]
[1750711347107,0.7638,2359.6,2358.8,1.20266221]
[1750711347418,0.7871,2359.2,2358.5,4.23998304]
[1750711347618,0.7871,2359.2,2358.4,7.786]
[1750711347919,0.7871,2359.2,2358.2,2.76009464]
[1750711347920,0.7871,2359.1,2358.2,6.56644179]
[1750711348089,0.7871,2358.8,2357.9,0.803]
[1750711348292,0.7871,2358.6,2357.2,1.02456216]
[1750711348508,0.7871,2358.3,2357.3,0.35412658]
[1750711348818,11.22044902,2358.5,2357.3,0.35412658]
[1750711348819,0.7871,2358.0,2357.3,0.35412658]
[1750711349000,0.7871,2358.0,2357.4,4.24186501]
[1750711349201,0.7871,2358.0,2357.4,4.59597657]
[1750711349417,0.7871,2358.0,2357.4,5.47979534]
[1750711349721,0.7871,2358.0,2357.4,1.23793033]
[1750711349916,0.7871,2358.0,2357.4,0.35411156]
[1750711350243,0.7871,2358.0,2357.1,4.1924578]
[1750711350522,0.7871,2358.0,2357.5,4.24176812]
[1750711350729,0.7871,2358.6,2358.1,4.24056217]
[1750711350913,0.7871,2358.6,2357.8,10.111]
[1750711351111,0.7871,2359.3,2358.8,4.23936512]
[1750711351309,0.7871,2359.3,2358.6,4.23970796]
[1750711351821,0.7871,2359.3,2358.5,12.02397931]
[1750711351822,0.7871,2359.3,2358.8,4.23932311]
[1750711352028,0.7871,2359.3,2358.7,4.23954017]
[1750711352331,0.7871,2359.3,2358.7,5.44189428]
[1750711352498,0.7871,2359.3,2358.7,4.23954026]
[1750711352707,0.7871,2359.3,2358.5,12.02393563]
[1750711352708,0.7871,2359.3,2358.6,4.23975042]
[1750711353023,0.7871,2359.3,2358.3,2.328]
[1750711353024,0.768,2359.1,2358.4,7.783]
[1750711353211,0.7871,2358.9,2358.2,4.24052017]
[1750711353815,0.7871,2358.9,2358.1,12.02056024]
[1750711354189,12.00754902,2358.9,2358.0,4.24078693]
[1750711354546,14.33554902,2358.9,2358.0,4.24080356]
[1750711354691,0.7651,2358.8,2358.0,6.16659137]
[1750711354886,10.7651,2358.8,2358.0,6.16659137]
[1750711355126,0.7651,2358.7,2357.9,4.24100735]
[1750711356221,3.0931,2358.7,2357.7,7.78]
[1750711356393,3.0931,2358.7,2358.0,4.24072369]
[1750711356826,3.0931,2358.7,2358.1,4.2406986]
[1750711356994,3.0931,2358.7,2358.0,4.24077798]
[1750711357195,6.45627839,2358.7,2358.0,4.24077798]
[1750711357531,6.45627839,2358.7,2358.1,4.24069126]
[1750711357728,6.45627839,2358.7,2358.0,4.24081043]
[1750711358031,6.45627839,2358.7,2358.1,4.24066231]
[1750711358594,11.22044902,2358.5,2357.6,7.777]
[1750711358794,0.7871,2358.3,2357.9,4.24105366]
[1750711359031,0.7871,2358.3,2357.8,4.24114448]
[1750711359201,0.7871,2358.3,2357.5,4.24178154]
[1750711359406,0.7871,2358.3,2357.6,4.24142647]
[1750711359822,0.7871,2358.3,2357.7,4.24139968]
[1750711360023,1.9878549,2358.3,2357.6,4.24154455]
[1750711360334,0.7871,2358.3,2358.0,4.24071815]
[1750711360834,0.7871,2359.5,2358.1,0.55]
[1750711361131,0.7871,2359.5,2358.6,4.23972897]
[1750711361132,10.7871,2359.5,2358.6,4.23972897]
[1750711361294,0.7871,2359.5,2358.5,4.23998304]
[1750711361633,0.7871,2359.5,2359.1,4.2388072]
[1750711361794,0.7871,2359.5,2358.1,10.098]
[1750711361995,0.7553,2359.3,2358.1,14.33868032]
[1750711362294,0.7578,2359.1,2358.3,4.24025268]
[1750711362495,10.7578,2358.7,2358.0,4.24072247]
[1750711362907,10.7578,2358.7,2357.9,4.24095674]
[1750711363116,10.7578,2358.7,2358.1,4.24059916]
[1750711363731,13.9651249,2358.7,2358.0,4.24079063]
[1750711363935,13.9651249,2358.7,2358.1,0.35400644]
[1750711364099,0.7578,2358.7,2358.2,4.24044664]
[1750711364700,0.7578,2358.7,2358.3,4.2403246]
[1750711365656,0.7578,2358.7,2358.2,4.24044514]
[1750711366463,0.7632,2359.2,2358.6,4.23971781]
[1750711366622,0.7632,2359.2,2358.4,4.24005465]
[1750711366824,0.7632,2359.0,2358.2,8.61112068]
[1750711367137,0.7632,2359.0,2358.3,4.24033885]
[1750711367455,1.9615649,2359.0,2358.3,4.24033885]
[1750711367656,1.9615649,2359.0,2358.2,8.61112068]
[1750711367871,1.9615649,2359.0,2358.2,5.08850933]
[1750711368037,1.9615649,2359.0,2358.2,4.24038865]
[1750711368241,1.9615649,2359.0,2358.3,4.24027533]
[1750711368437,0.7632,2359.0,2358.4,4.24009016]
[1750711368638,0.7632,2359.0,2358.3,4.24024839]
[1750711369034,0.7632,2359.0,2358.3,4.24027776]
[1750711369240,0.7632,2359.0,2358.4,4.24008339]
[1750711370184,0.7632,2359.0,2358.3,4.24019335]
[1750711370398,0.7632,2359.0,2358.4,4.24015177]
[1750711370684,0.7632,2359.0,2358.4,4.24000979]
[1750711371011,0.7632,2359.0,2358.4,4.2400584]
[1750711371383,0.7632,2359.0,2358.5,4.23991136]
[1750711371714,0.7632,2359.0,2358.5,4.23982839]
[1750711372471,0.7632,2359.0,2358.6,4.23978592]
[1750711372684,0.7725,2359.3,2359.2,4.2386591]
[1750711372883,0.47661828,2360.2,2358.8,0.7896]
[1750711372884,1.19816821,2359.9,2358.8,0.7896]
[1750711373068,0.7725,2359.3,2358.8,4.23933908]
[1750711373289,0.7725,2359.3,2358.9,4.23919073]
[1750711373601,0.7725,2359.3,2358.6,0.55]
[1750711373899,11.22044902,2359.7,2357.1,3.28275986]
[1750711373900,2.59388026,2358.4,2357.1,3.28275986]
[1750711374071,10.0,2357.1,2356.5,0.22157798]
[1750711374272,21.22044902,2356.7,2356.6,0.35423177]
[1750711374481,26.1863052,2356.7,2356.6,0.35423177]
[1750711374680,21.22044902,2356.7,2356.6,0.35423177]
[1750711374876,10.0,2356.7,2356.6,0.35423177]
[1750711375217,10.0,2357.4,2356.6,0.35423177]
[1750711375454,2.8972449,2357.3,2356.6,0.35423177]
[1750711375745,11.22044902,2357.1,2356.6,0.35423177]
[1750711375895,21.22044902,2357.1,2356.6,0.35423177]
[1750711376101,10.0,2357.0,2356.1,2.297]
[1750711377045,10.0,2357.0,2356.2,0.55]
[1750711377243,0.41565548,2357.4,2356.4,0.55]
[1750711377538,7.752,2357.4,2356.4,0.55]
[1750711378107,8.18184176,2357.4,2356.4,0.55]
[1750711379006,8.18184176,2357.4,2356.5,2.298]
[1750711380047,8.18184176,2357.4,2356.3,1.1159]
[1750711380048,10.0,2357.2,2356.0,10.9918]
[1750711380294,11.22044902,2356.1,2355.3,3.1048]
[1750711380461,10.39515154,2356.0,2355.0,0.8068]
[1750711380744,0.39515154,2355.9,2355.0,0.8068]
[1750711380954,10.39515154,2355.8,2354.8,2.298]
[1750711381130,0.39522369,2355.7,2354.8,2.298]
[1750711381338,0.39522369,2355.6,2355.4,4.24554166]
[1750711381535,10.0,2356.8,2355.5,3.114]
[1750711381713,10.0,2356.8,2355.6,2.6094]
[1750711381714,3.52241933,2356.7,2355.6,2.6094]
[1750711381913,0.39507443,2356.6,2355.6,0.3114]
[1750711382113,0.39506915,2356.5,2355.6,0.55]
[1750711382314,10.39506915,2356.4,2355.6,2.848]
[1750711382509,0.39506915,2356.3,2355.6,0.55]
[1750711382716,10.0,2356.4,2355.6,0.55]
[1750711382918,0.3940727,2356.3,2355.6,0.55]
[1750711383256,10.0,2356.4,2355.6,0.9164]
[1750711385228,10.0,2356.4,2355.7,2.298]
[1750711385423,11.22044902,2356.3,2355.1,0.7787]
[1750711385629,11.22044902,2356.3,2355.5,2.298]
[1750711386027,10.0,2356.5,2355.5,2.298]
[1750711386231,10.0,2356.5,2355.7,0.7934]
[1750711386443,12.47637493,2356.5,2355.8,0.55]
[1750711386619,11.22044902,2357.4,2356.0,0.55]
[1750711386953,0.39314883,2357.2,2356.2,1.3434]
[1750711387150,10.39314883,2357.2,2356.0,2.849]
[1750711387313,17.757,2357.2,2356.0,2.849]
[1750711387514,10.0,2357.0,2356.2,0.55]
[1750711390554,11.22044902,2356.9,2355.9,0.7934]
[1750711390714,11.22044902,2356.9,2355.9,3.0924]
[1750711390918,11.22044902,2356.9,2356.0,0.55]
[1750711391118,11.22044902,2356.9,2356.1,0.36424]
[1750711392624,11.22044902,2356.9,2356.1,4.60844243]
[1750711392844,11.22044902,2356.9,2356.2,4.24405857]
[1750711393047,11.22044902,2356.9,2356.1,0.36424]
[1750711393356,0.42030801,2357.3,2356.4,0.55]
[1750711393554,10.0,2357.4,2356.4,5.35528063]
[1750711394534,10.0,2357.4,2356.6,4.24328197]
[1750711394764,18.97644902,2357.5,2356.5,2.299]
[1750711395065,10.0,2357.4,2356.4,7.65424376]
[1750711395360,10.0,2357.4,2356.4,0.56155403]
[1750711395361,11.22044902,2357.2,2356.4,0.56155403]
[1750711395560,11.22044902,2357.2,2356.4,2.86055403]
[1750711395853,11.22044902,2357.2,2356.4,7.10428574]
[1750711396058,11.22044902,2357.2,2356.4,2.86055403]
[1750711396677,11.22044902,2357.2,2356.4,2.299]
[1750711397271,2.8976449,2357.3,2356.4,2.299]
[1750711397471,8.17901205,2357.4,2356.5,0.55]
[1750711397681,8.17901205,2357.4,2356.5,4.24349149]
[1750711398352,8.17901205,2357.4,2356.6,4.24335399]
[1750711398530,1.81790121,2357.3,2356.4,2.299]
[1750711398726,11.22044902,2357.2,2356.1,0.36424]
[1750711398931,11.22044902,2357.2,2356.0,0.8226]
[1750711398932,10.0,2357.1,2356.3,4.24386234]
[1750711399129,10.0,2357.1,2356.0,0.8226]
[1750711399328,10.0,2357.1,2355.9,7.09365361]
[1750711399329,10.0,2357.1,2356.5,4.24340586]
[1750711399573,10.0,2357.1,2356.2,0.8226]
[1750711399574,10.0,2357.1,2356.3,4.24383313]
[1750711399778,10.0,2357.1,2356.2,5.06662719]
[1750711399982,2.1220449,2357.0,2356.2,7.36562747]
[1750711400368,2.1220449,2357.0,2356.0,4.24440443]
[1750711400369,11.22044902,2356.8,2356.0,4.24440443]
[1750711400567,11.22044902,2356.8,2355.8,14.24476941]
[1750711400568,11.22044902,2356.8,2355.9,4.24455046]
[1750711401388,11.22044902,2356.8,2355.8,4.24474744]
[1750711401683,7.754,2356.9,2355.7,14.43895315]
[1750711401684,11.22044902,2356.4,2355.7,10.194]
[1750711401846,11.1220449,2356.3,2355.7,10.194]
[1750711403284,11.1220449,2356.3,2355.7,14.43899872]
[1750711403583,11.1220449,2356.3,2355.7,10.194]
[1750711403882,10.0,2356.4,2355.7,10.194]
[1750711404087,11.22044902,2356.8,2356.1,4.244295]
[1750711404250,11.22044902,2356.4,2355.5,0.7527]
[1750711404445,11.22044902,2356.4,2355.5,4.99799068]
[1750711404647,1.1220449,2356.3,2355.5,4.99807555]
[1750711405370,1.1220449,2356.3,2355.5,4.9980788]
[1750711405371,11.1220449,2356.3,2355.5,4.9980788]
[1750711405729,11.22044902,2355.6,2354.8,0.8117]
[1750711405892,18.97444902,2355.6,2354.6,2.293]
[1750711406096,10.0,2355.5,2354.6,4.24688042]
[1750711406276,10.0,2355.5,2354.6,5.40674639]
[1750711406277,2.8974449,2355.4,2354.6,5.40674639]
[1750711407429,2.8974449,2355.4,2354.5,7.3518047]
[1750711407609,0.39595352,2355.3,2354.5,7.3518047]
[1750711407912,0.39595352,2355.2,2354.5,0.8117]
[1750711408232,0.39595352,2355.1,2354.6,4.24690952]
[1750711408512,10.0,2355.5,2354.7,4.24671486]
[1750711408670,1.39555661,2355.4,2354.6,4.24690977]
[1750711408874,0.39557969,2355.3,2354.6,4.24690977]
[1750711409071,0.39557969,2355.3,2354.1,17.753]
[1750711409072,11.22044902,2354.7,2353.7,0.42210674]
[1750711409291,0.39567276,2354.6,2354.1,4.24777386]
[1750711409511,10.0,2354.9,2354.1,4.24780191]
[1750711409680,10.0,2354.9,2354.0,7.35270011]
[1750711409681,0.39567409,2354.8,2354.0,7.35270011]
[1750711409874,0.39567409,2354.7,2354.0,7.35270011]
[1750711410071,0.39567364,2354.6,2354.0,7.35270011]
[1750711410274,12.8974449,2354.9,2354.0,3.1047]
[1750711410511,0.39567839,2354.8,2354.0,5.05978077]
[1750711410710,10.0,2354.7,2353.8,4.24834329]
[1750711411020,0.39509272,2354.6,2353.8,4.24834329]
[1750711411315,0.39509272,2354.6,2353.4,14.24907479]
[1750711411316,10.39512122,2354.5,2353.9,4.24813134]
[1750711411481,0.39512456,2354.4,2353.6,4.24872217]
[1750711411678,17.755,2354.7,2353.5,2.293]
[1750711412016,21.22044902,2354.5,2353.6,4.24880287]
[1750711412214,10.395142,2354.4,2353.6,4.24880287]
[1750711412391,0.395142,2354.3,2353.6,4.24880287]
[1750711412595,10.0,2354.4,2353.7,4.24849257]
[1750711412814,10.0,2354.4,2353.5,3.80509194]
[1750711413118,12.12470134,2354.4,2353.5,8.05403013]
[1750711413299,12.12470134,2354.4,2353.6,4.24881033]
[1750711413505,12.12470134,2354.4,2353.7,4.24861534]
[1750711413705,11.22044902,2355.1,2354.0,4.24801933]
[1750711413884,10.0,2354.7,2354.0,4.24796855]
[1750711414221,10.0,2354.7,2354.1,4.2477561]
[1750711414421,10.0,2355.0,2354.1,4.2477561]
[1750711414630,10.0,2354.7,2354.1,4.2477561]
[1750711414824,10.0,2354.7,2354.0,4.24802462]
[1750711415439,21.22044902,2354.7,2353.9,4.24824717]
[1750711415600,21.22044902,2354.7,2353.6,0.55]
[1750711415601,0.39394427,2354.6,2353.6,0.55]
[1750711415792,0.39394427,2354.6,2353.9,4.24812199]
[1750711415990,11.22044902,2354.0,2352.6,0.2072768]
[1750711416186,10.0,2353.5,2352.3,0.7727]
[1750711416391,10.0,2353.6,2352.7,4.25036124]
[1750711416788,10.0,2353.6,2352.7,2.294]
[1750711417095,11.22044902,2353.5,2352.6,2.294]
[1750711417792,0.39333019,2353.4,2352.6,2.294]
[1750711418017,7.756,2353.3,2352.4,4.25097762]
[1750711418329,0.43449978,2353.9,2352.7,2.294]
[1750711418538,7.756,2353.7,2352.7,2.294]
[1750711418702,7.756,2353.7,2352.8,4.25023081]
[1750711418901,0.39328245,2353.6,2352.7,6.54433905]
[1750711419137,0.39328245,2353.6,2352.8,4.250253]
[1750711419353,0.39328245,2353.6,2352.7,4.25033706]
[1750711419713,0.39328245,2353.6,2352.8,4.25013843]
[1750711419913,10.0,2353.6,2353.0,0.7766]
[1750711420141,10.0,2353.6,2353.3,4.24919921]
[1750711420497,0.43532089,2353.9,2353.0,0.7766]
[1750711420760,10.0,2353.8,2353.1,4.47001383]
[1750711421267,10.0,2353.8,2353.2,4.24941794]
[1750711421412,10.42208938,2353.9,2353.1,0.2203921]
[1750711421613,0.39267933,2353.8,2353.1,0.2203921]
[1750711422015,10.0,2353.6,2353.1,0.2203921]
[1750711422266,9.8790449,2353.5,2353.1,0.2203921]
[1750711422762,0.42732242,2353.9,2353.1,0.2203921]
[1750711422971,10.0,2353.7,2353.1,0.2203921]
[1750711423313,11.22044902,2353.9,2353.1,0.2203921]
[1750711423314,10.0,2353.8,2353.2,0.7625]
[1750711423570,10.0,2354.1,2353.1,0.2203921]
[1750711423741,7.758,2353.7,2353.1,0.2203921]
[1750711424081,11.22044902,2353.2,2353.1,0.09535014]
[1750711424216,10.0,2353.1,2351.8,4.25195168]
[1750711424416,0.392653,2353.0,2351.7,4.25216062]
[1750711424773,0.392653,2353.0,2351.6,0.7769]
[1750711424917,10.39268743,2352.9,2351.9,4.25179579]
[1750711425108,7.757,2352.8,2351.8,4.25195925]
[1750711425314,10.0,2352.7,2351.7,4.2520812]
[1750711425651,10.0,2352.7,2351.9,4.25173048]
[1750711425943,10.0,2352.7,2352.0,4.25165711]
[1750711426144,10.4170301,2352.7,2351.9,4.25182493]
[1750711426349,23.41317912,2352.7,2351.6,5.02919628]
[1750711426551,23.41317912,2352.7,2351.7,4.25222376]
[1750711427012,7.759,2352.6,2351.8,4.25198111]
[1750711427212,7.759,2352.6,2351.6,3.0719]
[1750711427467,10.41304449,2352.6,2351.8,4.25191975]
[1750711428551,10.0,2351.8,2351.5,0.25602325]
[1750711429225,10.0,2352.2,2351.5,0.25602325]
[1750711429433,10.0,2352.0,2351.5,0.25602325]
[1750711429815,10.0,2352.2,2351.5,0.25602325]
[1750711430027,10.0,2352.0,2351.5,0.25602325]
[1750711431176,10.0,2352.2,2351.5,1.33336866]
[1750711431460,7.76,2352.3,2351.9,4.25181494]
[1750711431631,11.22044902,2352.9,2352.2,4.25120297]
[1750711431834,11.22044902,2352.9,2352.1,6.54334873]
[1750711432033,2.1272449,2352.9,2352.1,3.00133487]
[1750711432361,7.761,2353.1,2352.5,4.2507013]
[1750711432570,7.761,2353.1,2352.4,4.25087769]
[1750711432854,10.0,2353.0,2352.4,4.25083068]
[1750711433069,7.761,2353.1,2352.4,4.25083068]
[1750711433257,10.0,2353.0,2352.3,4.80106775]
[1750711433460,10.0,2353.0,2352.3,5.58964818]
[1750711433630,10.0,2353.0,2352.5,4.25074584]
[1750711433831,10.0,2353.0,2352.3,1.33856678]
[1750711434362,10.0,2353.0,2352.3,5.58971389]
[1750711434853,10.0,2353.0,2352.3,0.78856678]
[1750711435074,12.8981449,2353.0,2352.3,0.78856678]
[1750711435425,12.8981449,2353.0,2352.3,5.03970875]
[1750711436050,12.8981449,2353.0,2352.3,0.78856678]
[1750711436452,12.8981449,2353.0,2352.3,5.03971758]
[1750711436649,0.39372161,2352.9,2352.3,5.03971758]
[1750711436891,10.0,2353.0,2352.3,5.03971758]
[1750711437040,0.39371894,2352.9,2352.3,5.03971758]
[1750711437242,10.0,2353.0,2352.5,4.25068609]
[1750711437664,8.17856576,2353.1,2352.5,4.25068609]
[1750711438086,0.39429685,2353.0,2352.5,4.25068609]
[1750711438294,0.39429685,2353.0,2352.7,4.25027297]
[1750711438500,21.42944902,2353.5,2352.6,4.25046191]
[1750711438501,8.17916456,2353.3,2352.6,4.25046191]
[1750711438642,0.39426683,2353.2,2352.6,4.25046191]
[1750711438842,0.39426683,2353.2,2352.5,4.800737]
[1750711439073,0.39426683,2353.1,2352.6,4.25051072]
[1750711439285,22.41417841,2353.5,2352.6,4.25051072]
[1750711439467,0.39447161,2353.4,2352.6,5.21395867]
[1750711439671,0.39447161,2353.3,2352.6,5.2139746]
[1750711439981,0.39447161,2353.2,2352.6,0.96344795]
[1750711440175,0.39447161,2353.1,2352.6,0.96344795]
[1750711440340,10.43122555,2353.4,2352.3,4.80103995]
[1750711440544,0.3944884,2353.3,2352.3,7.09303995]
[1750711440762,0.39509274,2353.2,2352.3,7.09303995]
[1750711441061,0.39509274,2353.1,2352.3,7.09303995]
[1750711441264,0.39509274,2353.0,2352.3,7.09303995]
[1750711441584,0.39509274,2352.9,2352.3,4.8010499]
[1750711441770,0.39509274,2352.8,2352.3,0.55]
[1750711442080,11.22044902,2353.1,2352.3,4.80104468]
[1750711442278,0.39523937,2353.0,2352.3,4.80104468]
[1750711442592,0.39523937,2352.9,2352.4,4.25087449]
[1750711442760,0.39523937,2352.8,2352.4,4.81022194]
[1750711442957,10.43122555,2353.4,2352.9,4.2499797]
[1750711443168,0.39551912,2353.3,2352.8,4.25015679]
[1750711443356,0.39551912,2353.2,2353.1,4.79963935]
[1750711443744,7.759,2354.0,2353.1,0.55]
[1750711443940,19.08044902,2354.2,2353.2,0.55]
[1750711443941,1.17133204,2353.9,2353.2,0.55]
[1750711444247,0.39538872,2353.8,2353.4,4.24906296]
[1750711444458,0.39538872,2353.7,2353.4,4.24912154]
[1750711444663,0.39598314,2353.6,2353.5,4.24889561]
[1750711444859,0.39597893,2353.6,2353.2,4.24953255]
[1750711445201,0.39597893,2353.5,2353.4,4.24917141]
[1750711445395,0.39597893,2353.5,2353.4,5.05537141]
[1750711445696,10.0,2354.1,2353.4,0.8062]
[1750711445900,10.0,2353.9,2353.4,0.8062]
[1750711446101,0.39582012,2353.8,2353.4,0.8062]
[1750711446404,0.39582012,2353.7,2353.1,0.8062]
[1750711446562,10.0,2353.9,2353.4,4.24909599]
[1750711446766,0.39574389,2353.8,2353.2,0.55]
[1750711446967,0.39574389,2353.7,2353.3,4.24935024]
[1750711447181,10.0,2353.9,2353.3,4.24935024]
[1750711447367,0.39574184,2353.8,2353.3,4.24935024]
[1750711447701,0.39574184,2353.7,2353.3,4.24935024]
[1750711447858,10.0,2353.9,2353.3,4.24935024]
[1750711448058,0.39575228,2353.8,2353.3,4.24935024]
[1750711448288,0.39575228,2353.7,2353.3,4.24935024]
[1750711448489,10.0,2353.9,2353.4,4.24913547]
[1750711448698,0.39572847,2353.8,2353.5,4.24886421]
[1750711448899,10.0,2354.3,2353.5,4.24886421]
[1750711449101,0.39557935,2354.2,2353.5,4.24886421]